Workbook

Sheet Feuil1
A1: Date | B1: Type | C1: Explication | D1: Combiné / Simple | E1: Cote | F1: Mise | G1: Gagné/perdu | H1: Gain | I1: Bénéfice | M1: Bankroll | N1: 50
A2: 2015-10-12 | B2: Gratuit | C2: Russie + Suède + Angleterre + Tsonga + Slovaquie | D2: Combiné | E2: =1.28*1.13*1.37*1.3*1.26 -> 3.245808384 | F2: 10 | G2: Gagné | H2: =IF(Tableau1[[#All],[Gagné/perdu]]="Perdu",0,IF(Tableau1[[#All],[Type]]="Gratuit",IF(Tableau1[[#All],[Gagné/perdu]]="Gagné",Tableau1[[#All],[Mise]]*Tableau1[[#All],[Cote]]-Tableau1[[#All],[Mise]]),IF(Tableau1[[#All],[Type]]="Pari",IF(Tableau1[[#All],[Gagné/perdu]]="Gagné",Tableau1[[#All],[Cote]]*Tableau1[[#All],[Mise]])))) -> 22.45808384 | I2: =IF(Tableau1[[#All],[Type]]="Gratuit",Tableau1[[#All],[Gain]],IF(Tableau1[[#All],[Type]]="Pari",Tableau1[[#All],[Gain]]-Tableau1[[#All],[Mise]])) -> 22.45808384 | M2: Bankroll Actuelle | N2: =SUM(Tableau1[[#All],[Bénéfice]])+N1 -> 56.93608384
A3: 2015-10-12 | B3: Gratuit | C3: Suisse U21 + Russie + Suède + Suisse | D3: Combiné | E3: =1.66*1.28*1.13*1.46 -> 3.50549504 | F3: 10 | G3: Perdu | H3: =IF(Tableau1[[#All],[Gagné/perdu]]="Perdu",0,IF(Tableau1[[#All],[Type]]="Gratuit",IF(Tableau1[[#All],[Gagné/perdu]]="Gagné",Tableau1[[#All],[Mise]]*Tableau1[[#All],[Cote]]-Tableau1[[#All],[Mise]]),IF(Tableau1[[#All],[Type]]="Pari",IF(Tableau1[[#All],[Gagné/perdu]]="Gagné",Tableau1[[#All],[Cote]]*Tableau1[[#All],[Mise]])))) -> 0 | I3: =IF(Tableau1[[#All],[Type]]="Gratuit",Tableau1[[#All],[Gain]],IF(Tableau1[[#All],[Type]]="Pari",Tableau1[[#All],[Gain]]-Tableau1[[#All],[Mise]])) -> 0 | M3: Mise possible | N3: =N2*0.03 -> 1.708082515
A4: 2015-10-13 | B4: Gratuit | C4: Pays-Bas + Algérie + Turquie | D4: Combiné | E4: =1.46*1.45*2.2 -> 4.6574 | F4: 10 | H4: =IF(Tableau1[[#All],[Gagné/perdu]]="Perdu",0,IF(Tableau1[[#All],[Type]]="Gratuit",IF(Tableau1[[#All],[Gagné/perdu]]="Gagné",Tableau1[[#All],[Mise]]*Tableau1[[#All],[Cote]]-Tableau1[[#All],[Mise]]),IF(Tableau1[[#All],[Type]]="Pari",IF(Tableau1[[#All],[Gagné/perdu]]="Gagné",Tableau1[[#All],[Cote]]*Tableau1[[#All],[Mise]])))) -> FALSE | I4: =IF(Tableau1[[#All],[Type]]="Gratuit",Tableau1[[#All],[Gain]],IF(Tableau1[[#All],[Type]]="Pari",Tableau1[[#All],[Gain]]-Tableau1[[#All],[Mise]])) -> FALSE | M4: Paris Gratuit | N4: =50-F2-F3-Tableau1[[#This Row],[Mise]]-F5 -> 0
A5: 2015-10-13 | B5: Gratuit | C5: Simon + Sock + Federer + Angleterre U21 + France U21 + Belgique + V. Williams | D5: Combiné | E5: =1.05*1.3*1.27*1.19*1.01*1.05*1.15 -> 2.515891147 | F5: 20 | G5: Perdu | H5: =IF(Tableau1[[#All],[Gagné/perdu]]="Perdu",0,IF(Tableau1[[#All],[Type]]="Gratuit",IF(Tableau1[[#All],[Gagné/perdu]]="Gagné",Tableau1[[#All],[Mise]]*Tableau1[[#All],[Cote]]-Tableau1[[#All],[Mise]]),IF(Tableau1[[#All],[Type]]="Pari",IF(Tableau1[[#All],[Gagné/perdu]]="Gagné",Tableau1[[#All],[Cote]]*Tableau1[[#All],[Mise]])))) -> 0 | I5: =IF(Tableau1[[#All],[Type]]="Gratuit",Tableau1[[#All],[Gain]],IF(Tableau1[[#All],[Type]]="Pari",Tableau1[[#All],[Gain]]-Tableau1[[#All],[Mise]])) -> 0 | M5: Mise pour FUN | N5: =N2*0.005 -> 0.2846804192
A6: 2015-10-13 | B6: Pari | C6: Belgique + Pays Bas + Match Nul + Bosnie + Italie + Match Nul + Turquie | D6: Combiné | E6: =1.3*1.45*3.6*1.76*1.91*3.25*1.5 -> 111.2076108 | F6: 1 | H6: =IF(Tableau1[[#All],[Gagné/perdu]]="Perdu",0,IF(Tableau1[[#All],[Type]]="Gratuit",IF(Tableau1[[#All],[Gagné/perdu]]="Gagné",Tableau1[[#All],[Mise]]*Tableau1[[#All],[Cote]]-Tableau1[[#All],[Mise]]),IF(Tableau1[[#All],[Type]]="Pari",IF(Tableau1[[#All],[Gagné/perdu]]="Gagné",Tableau1[[#All],[Cote]]*Tableau1[[#All],[Mise]])))) -> FALSE | I6: =IF(Tableau1[[#All],[Type]]="Gratuit",Tableau1[[#All],[Gain]],IF(Tableau1[[#All],[Type]]="Pari",Tableau1[[#All],[Gain]]-Tableau1[[#All],[Mise]])) -> -1 | M6: Total Mise | N6: =SUM(Tableau1[[#All],[Mise]]) -> 68.22
A7: 2015-10-14 | B7: Pari | C7: Nadal + Valence | D7: Combiné | E7: =1.23*1.36 -> 1.6728 | F7: 2.14 | H7: =IF(Tableau1[[#All],[Gagné/perdu]]="Perdu",0,IF(Tableau1[[#All],[Type]]="Gratuit",IF(Tableau1[[#All],[Gagné/perdu]]="Gagné",Tableau1[[#All],[Mise]]*Tableau1[[#All],[Cote]]-Tableau1[[#All],[Mise]]),IF(Tableau1[[#All],[Type]]="Pari",IF(Tableau1[[#All],[Gagné/perdu]]="Gagné",Tableau1[[#All],[Cote]]*Tableau1[[#All],[Mise]])))) -> FALSE | I7: =IF(Tableau1[[#All],[Type]]="Gratuit",Tableau1[[#All],[Gain]],IF(Tableau1[[#All],[Type]]="Pari",Tableau1[[#All],[Gain]]-Tableau1[[#All],[Mise]])) -> -2.14 | M7: Gain/perte | N7: =SUM(Tableau1[[#All],[Gain]]) -> 25.15608384
A8: 2015-10-13 | B8: Pari | C8: Belgique + Croatie + Pays-Bas + Turquie + Pays de Galles | D8: Combiné | E8: =1.3*1.05*1.45*1.5*1.01 -> 2.99856375 | F8: 2.08 | H8: =IF(Tableau1[[#All],[Gagné/perdu]]="Perdu",0,IF(Tableau1[[#All],[Type]]="Gratuit",IF(Tableau1[[#All],[Gagné/perdu]]="Gagné",Tableau1[[#All],[Mise]]*Tableau1[[#All],[Cote]]-Tableau1[[#All],[Mise]]),IF(Tableau1[[#All],[Type]]="Pari",IF(Tableau1[[#All],[Gagné/perdu]]="Gagné",Tableau1[[#All],[Cote]]*Tableau1[[#All],[Mise]])))) -> FALSE | I8: =IF(Tableau1[[#All],[Type]]="Gratuit",Tableau1[[#All],[Gain]],IF(Tableau1[[#All],[Type]]="Pari",Tableau1[[#All],[Gain]]-Tableau1[[#All],[Mise]])) -> -2.08 | M8: ROI | N8: =(N7-N6)/N6 -> -0.6312506033
A9: 2015-10-13 | B9: Pari | C9: Beygelzimer | D9: Simple | E9: 2.85 | F9: 2.02 | G9: Perdu | H9: =IF(Tableau1[[#All],[Gagné/perdu]]="Perdu",0,IF(Tableau1[[#All],[Type]]="Gratuit",IF(Tableau1[[#All],[Gagné/perdu]]="Gagné",Tableau1[[#All],[Mise]]*Tableau1[[#All],[Cote]]-Tableau1[[#All],[Mise]]),IF(Tableau1[[#All],[Type]]="Pari",IF(Tableau1[[#All],[Gagné/perdu]]="Gagné",Tableau1[[#All],[Cote]]*Tableau1[[#All],[Mise]])))) -> 0 | I9: =IF(Tableau1[[#All],[Type]]="Gratuit",Tableau1[[#All],[Gain]],IF(Tableau1[[#All],[Type]]="Pari",Tableau1[[#All],[Gain]]-Tableau1[[#All],[Mise]])) -> -2.02
A10: 2015-10-13 | B10: Pari | C10: Williams | D10: Simple | E10: 18 | F10: 1.96 | G10: Perdu | H10: =IF(Tableau1[[#All],[Gagné/perdu]]="Perdu",0,IF(Tableau1[[#All],[Type]]="Gratuit",IF(Tableau1[[#All],[Gagné/perdu]]="Gagné",Tableau1[[#All],[Mise]]*Tableau1[[#All],[Cote]]-Tableau1[[#All],[Mise]]),IF(Tableau1[[#All],[Type]]="Pari",IF(Tableau1[[#All],[Gagné/perdu]]="Gagné",Tableau1[[#All],[Cote]]*Tableau1[[#All],[Mise]])))) -> 0 | I10: =IF(Tableau1[[#All],[Type]]="Gratuit",Tableau1[[#All],[Gain]],IF(Tableau1[[#All],[Type]]="Pari",Tableau1[[#All],[Gain]]-Tableau1[[#All],[Mise]])) -> -1.96
A11: 2015-10-13 | B11: Pari | C11: Williams | D11: Simple | E11: 1.42 | F11: 1.9 | G11: Gagné | H11: =IF(Tableau1[[#All],[Gagné/perdu]]="Perdu",0,IF(Tableau1[[#All],[Type]]="Gratuit",IF(Tableau1[[#All],[Gagné/perdu]]="Gagné",Tableau1[[#All],[Mise]]*Tableau1[[#All],[Cote]]-Tableau1[[#All],[Mise]]),IF(Tableau1[[#All],[Type]]="Pari",IF(Tableau1[[#All],[Gagné/perdu]]="Gagné",Tableau1[[#All],[Cote]]*Tableau1[[#All],[Mise]])))) -> 2.698 | I11: =IF(Tableau1[[#All],[Type]]="Gratuit",Tableau1[[#All],[Gain]],IF(Tableau1[[#All],[Type]]="Pari",Tableau1[[#All],[Gain]]-Tableau1[[#All],[Mise]])) -> 0.798
A12: 2015-10-13 | B12: Pari | C12: moins de 8,5 jeu | D12: Simple | E12: 2 | F12: 1.84 | G12: Perdu | H12: =IF(Tableau1[[#All],[Gagné/perdu]]="Perdu",0,IF(Tableau1[[#All],[Type]]="Gratuit",IF(Tableau1[[#All],[Gagné/perdu]]="Gagné",Tableau1[[#All],[Mise]]*Tableau1[[#All],[Cote]]-Tableau1[[#All],[Mise]]),IF(Tableau1[[#All],[Type]]="Pari",IF(Tableau1[[#All],[Gagné/perdu]]="Gagné",Tableau1[[#All],[Cote]]*Tableau1[[#All],[Mise]])))) -> 0 | I12: =IF(Tableau1[[#All],[Type]]="Gratuit",Tableau1[[#All],[Gain]],IF(Tableau1[[#All],[Type]]="Pari",Tableau1[[#All],[Gain]]-Tableau1[[#All],[Mise]])) -> -1.84
A13: 2015-10-13 | B13: Pari | C13: Williams jeu 2 | D13: Simple | E13: 4 | F13: 1.79 | G13: Perdu | H13: =IF(Tableau1[[#All],[Gagné/perdu]]="Perdu",0,IF(Tableau1[[#All],[Type]]="Gratuit",IF(Tableau1[[#All],[Gagné/perdu]]="Gagné",Tableau1[[#All],[Mise]]*Tableau1[[#All],[Cote]]-Tableau1[[#All],[Mise]]),IF(Tableau1[[#All],[Type]]="Pari",IF(Tableau1[[#All],[Gagné/perdu]]="Gagné",Tableau1[[#All],[Cote]]*Tableau1[[#All],[Mise]])))) -> 0 | I13: =IF(Tableau1[[#All],[Type]]="Gratuit",Tableau1[[#All],[Gain]],IF(Tableau1[[#All],[Type]]="Pari",Tableau1[[#All],[Gain]]-Tableau1[[#All],[Mise]])) -> -1.79
A14: 2015-10-13 | B14: Pari | C14: Turkménistan + UK 21 + Espagne 21 + France 21 + Belgique | D14: Combiné | E14: =1.3*1.33*1.38*1.12*1.3 -> 3.47404512 | F14: 1.73 | H14: =IF(Tableau1[[#All],[Gagné/perdu]]="Perdu",0,IF(Tableau1[[#All],[Type]]="Gratuit",IF(Tableau1[[#All],[Gagné/perdu]]="Gagné",Tableau1[[#All],[Mise]]*Tableau1[[#All],[Cote]]-Tableau1[[#All],[Mise]]),IF(Tableau1[[#All],[Type]]="Pari",IF(Tableau1[[#All],[Gagné/perdu]]="Gagné",Tableau1[[#All],[Cote]]*Tableau1[[#All],[Mise]])))) -> FALSE | I14: =IF(Tableau1[[#All],[Type]]="Gratuit",Tableau1[[#All],[Gain]],IF(Tableau1[[#All],[Type]]="Pari",Tableau1[[#All],[Gain]]-Tableau1[[#All],[Mise]])) -> -1.73
A15: 2015-10-13 | B15: Pari | C15: Bosnie -1 | D15: Simple | E15: 3.15 | F15: 1.76 | H15: =IF(Tableau1[[#All],[Gagné/perdu]]="Perdu",0,IF(Tableau1[[#All],[Type]]="Gratuit",IF(Tableau1[[#All],[Gagné/perdu]]="Gagné",Tableau1[[#All],[Mise]]*Tableau1[[#All],[Cote]]-Tableau1[[#All],[Mise]]),IF(Tableau1[[#All],[Type]]="Pari",IF(Tableau1[[#All],[Gagné/perdu]]="Gagné",Tableau1[[#All],[Cote]]*Tableau1[[#All],[Mise]])))) -> FALSE | I15: =IF(Tableau1[[#All],[Type]]="Gratuit",Tableau1[[#All],[Gain]],IF(Tableau1[[#All],[Type]]="Pari",Tableau1[[#All],[Gain]]-Tableau1[[#All],[Mise]])) -> -1.76
